[Event "Early-Titled-Tuesday-Blitz-February-06-2024"]
[Site "Chess.com"]
[Date "2024.02.06"]
[Round "10"]
[White "LuisFSiles"]
[Black "Gryffindorac8"]
[Result "1-0"]
[WhiteElo "2264"]
[BlackElo "2348"]
[TimeControl "180+1"]
[EndTime "9:53:48 PST"]
[Termination "LuisFSiles won by resignation"]

1. e4 {[%clk 0:03:00.9]} 1... c5 {[%clk 0:02:59.9]} 2. Nf3 {[%clk 0:03:00.7]}
2... d6 {[%clk 0:03:00.3]} 3. Bb5+ {[%clk 0:03:00.4]} 3... Bd7 {[%clk
0:03:00.4]} 4. Bxd7+ {[%clk 0:03:00.5]} 4... Qxd7 {[%clk 0:03:01.3]} 5. O-O
{[%clk 0:03:00.5]} 5... Nc6 {[%clk 0:03:00.7]} 6. c3 {[%clk 0:03:00.5]} 6... e6
{[%clk 0:03:00.2]} 7. d4 {[%clk 0:02:59.7]} 7... cxd4 {[%clk 0:03:00.8]} 8. cxd4
{[%clk 0:03:00.2]} 8... d5 {[%clk 0:03:01.3]} 9. exd5 {[%clk 0:02:53.4]} 9...
Qxd5 {[%clk 0:02:58.1]} 10. Nc3 {[%clk 0:02:52.9]} 10... Qd8 {[%clk 0:02:57.3]}
11. d5 {[%clk 0:02:53]} 11... exd5 {[%clk 0:02:54.7]} 12. Re1+ {[%clk
0:02:40.7]} 12... Be7 {[%clk 0:02:37.9]} 13. Nxd5 {[%clk 0:02:39]} 13... Nf6
{[%clk 0:02:25.4]} 14. Nxf6+ {[%clk 0:02:06.3]} 14... gxf6 {[%clk 0:02:24.2]}
15. Qa4 {[%clk 0:01:57.8]} 15... Rg8 {[%clk 0:02:04.3]} 16. Bf4 {[%clk 0:01:46]}
16... Qd5 {[%clk 0:01:58.9]} 17. Rxe7+ {[%clk 0:00:54.9]} 17... Kxe7 {[%clk
0:01:54.2]} 18. Re1+ {[%clk 0:00:54.7]} 18... Kf8 {[%clk 0:00:40.1]} 19. Bh6+
{[%clk 0:00:53.8]} 19... Rg7 {[%clk 0:00:40.2]} 20. Qg4 {[%clk 0:00:53.3]} 1-0

[Event "Early-Titled-Tuesday-Blitz-February-06-2024"]
[Site "Chess.com"]
[Date "2024.02.06"]
[Round "10"]
[White "wild3000"]
[Black "IngOscarArdila"]
[Result "1-0"]
[WhiteElo "2355"]
[BlackElo "2210"]
[TimeControl "180+1"]
[EndTime "9:53:51 PST"]
[Termination "wild3000 won by checkmate"]

1. h4 {[%clk 0:03:00]} 1... h5 {[%clk 0:02:42.5]} 2. a4 {[%clk 0:02:59.5]} 2...
a5 {[%clk 0:02:42.2]} 3. d4 {[%clk 0:02:59.9]} 3... d5 {[%clk 0:02:42.2]} 4. c4
{[%clk 0:02:59.9]} 4... c6 {[%clk 0:02:41]} 5. Nc3 {[%clk 0:02:59.1]} 5... Nf6
{[%clk 0:02:40.7]} 6. Bg5 {[%clk 0:02:58.9]} 6... e6 {[%clk 0:02:40.5]} 7. e4
{[%clk 0:02:58.1]} 7... dxe4 {[%clk 0:02:39.3]} 8. Nge2 {[%clk 0:02:55.2]} 8...
Be7 {[%clk 0:02:37.4]} 9. Ng3 {[%clk 0:02:55.2]} 9... Qb6 {[%clk 0:02:31.8]} 10.
Rb1 {[%clk 0:02:47.4]} 10... Nbd7 {[%clk 0:02:13.1]} 11. Be2 {[%clk 0:02:45.1]}
11... c5 {[%clk 0:02:09.6]} 12. d5 {[%clk 0:02:43.9]} 12... exd5 {[%clk
0:02:08.3]} 13. cxd5 {[%clk 0:02:44.5]} 13... O-O {[%clk 0:02:04.4]} 14. Nf5
{[%clk 0:02:40.9]} 14... Re8 {[%clk 0:01:56.9]} 15. O-O {[%clk 0:02:40.3]} 15...
Bf8 {[%clk 0:01:51.1]} 16. Bb5 {[%clk 0:02:39.7]} 16... Re5 {[%clk 0:01:30.8]}
17. Ne3 {[%clk 0:02:32.2]} 17... g6 {[%clk 0:01:05.3]} 18. Nc4 {[%clk
0:02:31.4]} 18... Qc7 {[%clk 0:01:01.8]} 19. d6 {[%clk 0:02:31.5]} 19... Qd8
{[%clk 0:00:58.4]} 20. Nxe5 {[%clk 0:02:31.3]} 20... Nxe5 {[%clk 0:00:58.3]} 21.
Nd5 {[%clk 0:02:30.5]} 21... Ned7 {[%clk 0:00:56.3]} 22. Bxd7 {[%clk 0:02:29]}
22... Bxd7 {[%clk 0:00:52.6]} 23. Nxf6+ {[%clk 0:02:27.7]} 23... Kh8 {[%clk
0:00:52.6]} 24. Nxh5 {[%clk 0:02:24]} 24... Qc8 {[%clk 0:00:38.6]} 25. Nf6
{[%clk 0:02:22]} 25... Bf5 {[%clk 0:00:37.2]} 26. d7 {[%clk 0:02:21.3]} 26...
Qc7 {[%clk 0:00:36.2]} 27. Qd5 {[%clk 0:02:16.9]} 27... Be6 {[%clk 0:00:34.8]}
28. Qxe4 {[%clk 0:02:14.8]} 28... Bxd7 {[%clk 0:00:31.1]} 29. Nxd7 {[%clk
0:02:14.7]} 29... Qxd7 {[%clk 0:00:31.5]} 30. Rbd1 {[%clk 0:02:14.5]} 30... Qc7
{[%clk 0:00:28.8]} 31. Bf6+ {[%clk 0:02:13.6]} 31... Kg8 {[%clk 0:00:28.3]} 32.
Be5 {[%clk 0:02:08]} 32... Qb6 {[%clk 0:00:27.7]} 33. Qf4 {[%clk 0:02:07.6]}
33... Be7 {[%clk 0:00:19.8]} 34. Rd7 {[%clk 0:02:06.2]} 34... Qe6 {[%clk
0:00:19]} 35. Rxb7 {[%clk 0:02:05.3]} 35... f6 {[%clk 0:00:17.7]} 36. Rxe7
{[%clk 0:02:04.1]} 36... Qxe7 {[%clk 0:00:17.4]} 37. Bxf6 {[%clk 0:02:03.7]}
37... Qf7 {[%clk 0:00:17]} 38. Qg5 {[%clk 0:02:03.6]} 38... Rf8 {[%clk
0:00:15.8]} 39. Bc3 {[%clk 0:02:02.9]} 39... c4 {[%clk 0:00:15.9]} 40. Qxa5
{[%clk 0:02:02.1]} 40... Kh7 {[%clk 0:00:15.8]} 41. Qg5 {[%clk 0:01:59.5]} 41...
Kg8 {[%clk 0:00:14.1]} 42. a5 {[%clk 0:01:59.5]} 42... Re8 {[%clk 0:00:13.7]}
43. Qh6 {[%clk 0:01:59.3]} 43... Qf5 {[%clk 0:00:10.4]} 44. Qg7# {[%clk
0:01:59]} 1-0

[Event "Early-Titled-Tuesday-Blitz-February-06-2024"]
[Site "Chess.com"]
[Date "2024.02.06"]
[Round "10"]
[White "N4700000"]
[Black "SabinaFoisor"]
[Result "1-0"]
[WhiteElo "2432"]
[BlackElo "2330"]
[TimeControl "180+1"]
[EndTime "9:53:54 PST"]
[Termination "N4700000 won by resignation"]

1. e4 {[%clk 0:02:58.5]} 1... c6 {[%clk 0:02:59.6]} 2. d4 {[%clk 0:02:57.5]}
2... d5 {[%clk 0:02:59.9]} 3. exd5 {[%clk 0:02:57.8]} 3... cxd5 {[%clk
0:03:00.2]} 4. Nf3 {[%clk 0:02:58.1]} 4... Nc6 {[%clk 0:02:57.9]} 5. Ne5 {[%clk
0:02:57.6]} 5... Nxe5 {[%clk 0:02:52.3]} 6. dxe5 {[%clk 0:02:57.1]} 6... e6
{[%clk 0:02:52.5]} 7. Bd3 {[%clk 0:02:56.3]} 7... Bc5 {[%clk 0:02:49.7]} 8. O-O
{[%clk 0:02:55.3]} 8... Ne7 {[%clk 0:02:49.9]} 9. Nd2 {[%clk 0:02:52.6]} 9...
Ng6 {[%clk 0:02:47.6]} 10. Nb3 {[%clk 0:02:51.8]} 10... Be7 {[%clk 0:02:40]} 11.
f4 {[%clk 0:02:45.6]} 11... Bd7 {[%clk 0:02:36.8]} 12. Qh5 {[%clk 0:02:32.1]}
12... Qb6+ {[%clk 0:02:27.5]} 13. Kh1 {[%clk 0:02:30.9]} 13... a5 {[%clk
0:02:27.4]} 14. a4 {[%clk 0:02:27.5]} 14... O-O {[%clk 0:02:16.2]} 15. Rf3
{[%clk 0:02:18.4]} 15... f5 {[%clk 0:02:01.2]} 16. exf6 {[%clk 0:01:50.9]} 16...
Rxf6 {[%clk 0:01:47]} 17. Rh3 {[%clk 0:01:39]} 17... e5 {[%clk 0:01:29.5]} 18.
Qxh7+ {[%clk 0:01:32.3]} 18... Kf7 {[%clk 0:01:25.1]} 19. fxe5 {[%clk
0:01:03.8]} 19... Bxh3 {[%clk 0:00:39.6]} 20. exf6 {[%clk 0:01:01.7]} 20... Qxf6
{[%clk 0:00:30.2]} 21. Qxg6+ {[%clk 0:00:57.4]} 21... Qxg6 {[%clk 0:00:29.4]}
22. Bxg6+ {[%clk 0:00:58.3]} 22... Kxg6 {[%clk 0:00:29.8]} 23. gxh3 {[%clk
0:00:58.7]} 23... b6 {[%clk 0:00:21.4]} 24. Be3 {[%clk 0:00:57.7]} 1-0

[Event "Early-Titled-Tuesday-Blitz-February-06-2024"]
[Site "Chess.com"]
[Date "2024.02.06"]
[Round "10"]
[White "Szachulec75"]
[Black "AndresDelgado77"]
[Result "0-1"]
[WhiteElo "2215"]
[BlackElo "2356"]
[TimeControl "180+1"]
[EndTime "9:53:55 PST"]
[Termination "AndresDelgado77 won by resignation"]

1. Nf3 {[%clk 0:03:00.9]} 1... d5 {[%clk 0:02:55.4]} 2. g3 {[%clk 0:02:59.2]}
2... c6 {[%clk 0:02:54.5]} 3. Bg2 {[%clk 0:02:59.7]} 3... Nf6 {[%clk 0:02:55.1]}
4. d3 {[%clk 0:02:59.6]} 4... Bf5 {[%clk 0:02:55.4]} 5. O-O {[%clk 0:03:00.1]}
5... h6 {[%clk 0:02:55.9]} 6. Nbd2 {[%clk 0:03:00.3]} 6... e6 {[%clk 0:02:55.9]}
7. b3 {[%clk 0:02:58.9]} 7... a5 {[%clk 0:02:54.6]} 8. a3 {[%clk 0:02:58.3]}
8... Be7 {[%clk 0:02:54.8]} 9. Bb2 {[%clk 0:02:58.7]} 9... O-O {[%clk
0:02:55.3]} 10. Re1 {[%clk 0:02:58.9]} 10... Bh7 {[%clk 0:02:54.2]} 11. e4
{[%clk 0:02:59]} 11... dxe4 {[%clk 0:02:52.7]} 12. dxe4 {[%clk 0:02:56.4]} 12...
Na6 {[%clk 0:02:52.5]} 13. Ne5 {[%clk 0:02:55]} 13... Nd7 {[%clk 0:02:51.4]} 14.
Ndf3 {[%clk 0:02:44.1]} 14... Nxe5 {[%clk 0:02:49.8]} 15. Nxe5 {[%clk
0:02:43.9]} 15... Bf6 {[%clk 0:02:40.5]} 16. Qe2 {[%clk 0:02:34.6]} 16... Qc7
{[%clk 0:02:33.7]} 17. Nc4 {[%clk 0:02:31.8]} 17... Bxb2 {[%clk 0:02:31.6]} 18.
Nxb2 {[%clk 0:02:32]} 18... Nc5 {[%clk 0:02:28.9]} 19. Qc4 {[%clk 0:02:26.1]}
19... Qe5 {[%clk 0:02:20.8]} 20. Nd3 {[%clk 0:02:15.3]} 20... Nxd3 {[%clk
0:02:20]} 21. Qxd3 {[%clk 0:02:15.7]} 21... Rfd8 {[%clk 0:02:18.4]} 22. Qe3
{[%clk 0:02:11.3]} 22... Qb2 {[%clk 0:01:51.8]} 23. Qe2 {[%clk 0:02:01.6]} 23...
Rd4 {[%clk 0:01:40.9]} 24. a4 {[%clk 0:01:46.5]} 24... Rad8 {[%clk 0:01:40.1]}
25. Rad1 {[%clk 0:01:46.9]} 25... Qc3 {[%clk 0:01:35.3]} 26. f3 {[%clk
0:01:37.3]} 26... Rd2 {[%clk 0:01:26.8]} 27. Rxd2 {[%clk 0:01:34.9]} 27... Rxd2
{[%clk 0:01:26.3]} 28. Qe3 {[%clk 0:01:31.6]} 28... Qxc2 {[%clk 0:01:23.6]} 29.
Bf1 {[%clk 0:01:27.1]} 29... f6 {[%clk 0:01:01.8]} 30. Qb6 {[%clk 0:01:21.5]}
30... Bg6 {[%clk 0:00:57.6]} 31. h3 {[%clk 0:01:14.9]} 31... Bh5 {[%clk
0:00:50.2]} 32. g4 {[%clk 0:01:13.7]} 32... Bf7 {[%clk 0:00:46.9]} 33. Qxb7
{[%clk 0:01:07.3]} 33... Qc5+ {[%clk 0:00:46]} 34. Kh1 {[%clk 0:01:02]} 34...
Qf2 {[%clk 0:00:45.6]} 0-1

[Event "Early-Titled-Tuesday-Blitz-February-06-2024"]
[Site "Chess.com"]
[Date "2024.02.06"]
[Round "10"]
[White "MokshAD1603"]
[Black "Kotofeyca"]
[Result "1-0"]
[WhiteElo "2609"]
[BlackElo "2437"]
[TimeControl "180+1"]
[EndTime "9:53:56 PST"]
[Termination "MokshAD1603 won by checkmate"]

1. e4 {[%clk 0:02:56.3]} 1... c5 {[%clk 0:02:59.7]} 2. Nf3 {[%clk 0:02:56.1]}
2... d6 {[%clk 0:03:00.1]} 3. d4 {[%clk 0:02:55]} 3... cxd4 {[%clk 0:03:01]} 4.
Nxd4 {[%clk 0:02:55.9]} 4... Nf6 {[%clk 0:03:01.6]} 5. Nc3 {[%clk 0:02:56.6]}
5... a6 {[%clk 0:03:02.1]} 6. h3 {[%clk 0:02:55]} 6... b5 {[%clk 0:03:00.1]} 7.
a4 {[%clk 0:02:44.1]} 7... b4 {[%clk 0:02:48.7]} 8. Nd5 {[%clk 0:02:43]} 8...
Nxe4 {[%clk 0:02:39.3]} 9. Qf3 {[%clk 0:02:32.4]} 9... Nc5 {[%clk 0:02:37.7]}
10. Nc7+ {[%clk 0:02:16.4]} 10... Qxc7 {[%clk 0:02:36.7]} 11. Qxa8 {[%clk
0:02:17.1]} 11... Bb7 {[%clk 0:02:21.5]} 12. Qa7 {[%clk 0:02:15.9]} 12... e5
{[%clk 0:02:17.5]} 13. Nb5 {[%clk 0:02:04]} 13... axb5 {[%clk 0:02:15.3]} 14.
Bxb5+ {[%clk 0:02:03.4]} 14... Kd8 {[%clk 0:01:48.3]} 15. Bd2 {[%clk 0:01:57.5]}
15... Nba6 {[%clk 0:01:18.4]} 16. O-O {[%clk 0:01:41.9]} 16... Be7 {[%clk
0:01:11.8]} 17. f4 {[%clk 0:01:41.9]} 17... e4 {[%clk 0:01:04.4]} 18. c3 {[%clk
0:01:37.7]} 18... Nb3 {[%clk 0:00:31.6]} 19. Be3 {[%clk 0:01:37.1]} 19... bxc3
{[%clk 0:00:18.1]} 20. Bb6 {[%clk 0:01:34.9]} 20... Nxa1 {[%clk 0:00:12.2]} 21.
Bxa6 {[%clk 0:01:31.8]} 21... cxb2 {[%clk 0:00:08.6]} 22. Qxb7 {[%clk
0:01:30.6]} 22... Qxb6+ {[%clk 0:00:08.1]} 23. Qxb6+ {[%clk 0:01:30.8]} 23...
Kd7 {[%clk 0:00:09]} 24. Qxb2 {[%clk 0:01:27.7]} 24... Bf6 {[%clk 0:00:09.4]}
25. Qb7+ {[%clk 0:01:27.6]} 25... Ke6 {[%clk 0:00:09.7]} 26. Qxe4+ {[%clk
0:01:27.1]} 26... Kd7 {[%clk 0:00:09.6]} 27. Bb5+ {[%clk 0:01:27.7]} 27... Kd8
{[%clk 0:00:08.7]} 28. Qa8+ {[%clk 0:01:25.5]} 28... Kc7 {[%clk 0:00:08.3]} 29.
Rc1+ {[%clk 0:01:25.1]} 29... Kb6 {[%clk 0:00:08.5]} 30. Qa6# {[%clk 0:01:25.1]}
1-0

[Event "Early-Titled-Tuesday-Blitz-February-06-2024"]
[Site "Chess.com"]
[Date "2024.02.06"]
[Round "10"]
[White "ChessBliss09"]
[Black "ItsCheckM8Mate"]
[Result "0-1"]
[WhiteElo "2136"]
[BlackElo "2362"]
[TimeControl "180+1"]
[EndTime "9:54:00 PST"]
[Termination "ItsCheckM8Mate won by checkmate"]

1. e4 {[%clk 0:02:43.6]} 1... c6 {[%clk 0:02:59.7]} 2. d4 {[%clk 0:02:43.3]}
2... d5 {[%clk 0:02:59.1]} 3. exd5 {[%clk 0:02:42.2]} 3... cxd5 {[%clk 0:03:00]}
4. c4 {[%clk 0:02:42.5]} 4... Nf6 {[%clk 0:02:59.8]} 5. Nc3 {[%clk 0:02:42.6]}
5... Nc6 {[%clk 0:03:00.1]} 6. Nf3 {[%clk 0:02:42.8]} 6... Be6 {[%clk
0:03:00.3]} 7. c5 {[%clk 0:02:30.1]} 7... g6 {[%clk 0:02:59.5]} 8. a3 {[%clk
0:02:29.2]} 8... Bg7 {[%clk 0:02:51]} 9. b4 {[%clk 0:02:29]} 9... a6 {[%clk
0:02:50.7]} 10. Rb1 {[%clk 0:02:25.2]} 10... O-O {[%clk 0:02:44.5]} 11. Bd3
{[%clk 0:02:23.1]} 11... Bg4 {[%clk 0:02:38.6]} 12. Be2 {[%clk 0:02:23.1]} 12...
Ne4 {[%clk 0:02:35.7]} 13. Nxe4 {[%clk 0:01:45.4]} 13... dxe4 {[%clk 0:02:35.6]}
14. Ng5 {[%clk 0:01:44.4]} 14... Bf5 {[%clk 0:02:29.2]} 15. d5 {[%clk 0:01:39]}
15... Nd4 {[%clk 0:02:26.4]} 16. Be3 {[%clk 0:00:53.7]} 16... Qxd5 {[%clk
0:02:18.6]} 17. O-O {[%clk 0:00:50.9]} 17... h6 {[%clk 0:02:12.7]} 18. Nh3
{[%clk 0:00:49.9]} 18... Bxh3 {[%clk 0:02:09.6]} 19. gxh3 {[%clk 0:00:50.8]}
19... Rad8 {[%clk 0:01:59.6]} 20. Bxd4 {[%clk 0:00:44.8]} 20... Bxd4 {[%clk
0:01:58.8]} 21. Qc1 {[%clk 0:00:39.9]} 21... Kh7 {[%clk 0:01:52.1]} 22. Rd1
{[%clk 0:00:36.6]} 22... Qf5 {[%clk 0:01:48.5]} 23. Rf1 {[%clk 0:00:18.6]} 23...
Qxh3 {[%clk 0:01:46.6]} 24. Qf4 {[%clk 0:00:17.9]} 24... Rd5 {[%clk 0:01:39.9]}
25. Kh1 {[%clk 0:00:11.5]} 25... Be5 {[%clk 0:01:35.4]} 26. Bg4 {[%clk
0:00:08.7]} 26... Qxf1+ {[%clk 0:01:35.1]} 27. Rxf1 {[%clk 0:00:08]} 27... Bxf4
{[%clk 0:01:35.9]} 28. Re1 {[%clk 0:00:07.3]} 28... f5 {[%clk 0:01:35.5]} 29.
Bd1 {[%clk 0:00:06.7]} 29... Rfd8 {[%clk 0:01:35.9]} 30. Bb3 {[%clk 0:00:06.7]}
30... Rd2 {[%clk 0:01:35.3]} 31. Kg1 {[%clk 0:00:06]} 31... e3 {[%clk
0:01:33.7]} 32. fxe3 {[%clk 0:00:06]} 32... Bxh2+ {[%clk 0:01:33.5]} 33. Kf1
{[%clk 0:00:06]} 33... Bg3 {[%clk 0:01:33.5]} 34. Rb1 {[%clk 0:00:05.5]} 34...
Rf2+ {[%clk 0:01:33.4]} 35. Kg1 {[%clk 0:00:05.9]} 35... Rdd2 {[%clk 0:01:33.7]}
36. Be6 {[%clk 0:00:05.5]} 36... Rg2+ {[%clk 0:01:33.7]} 37. Kf1 {[%clk
0:00:05.8]} 37... Rdf2+ {[%clk 0:01:33.3]} 38. Ke1 {[%clk 0:00:06.5]} 38... Rg1#
{[%clk 0:01:33.9]} 0-1

[Event "Early-Titled-Tuesday-Blitz-February-06-2024"]
[Site "Chess.com"]
[Date "2024.02.06"]
[Round "10"]
[White "ulises2013"]
[Black "ama18"]
[Result "1-0"]
[WhiteElo "2735"]
[BlackElo "2553"]
[TimeControl "180+1"]
[EndTime "9:54:01 PST"]
[Termination "ulises2013 won by checkmate"]

1. e4 {[%clk 0:02:58.1]} 1... c5 {[%clk 0:02:56.7]} 2. g3 {[%clk 0:02:58.3]}
2... d5 {[%clk 0:02:55.4]} 3. exd5 {[%clk 0:02:58.9]} 3... Qxd5 {[%clk
0:02:55.8]} 4. Nf3 {[%clk 0:02:59.6]} 4... Nc6 {[%clk 0:02:55.6]} 5. Bg2 {[%clk
0:03:00.1]} 5... g6 {[%clk 0:02:50.4]} 6. O-O {[%clk 0:02:58.8]} 6... Bg7 {[%clk
0:02:50]} 7. Nc3 {[%clk 0:02:58.7]} 7... Qd8 {[%clk 0:02:49.7]} 8. d3 {[%clk
0:02:57.7]} 8... Nf6 {[%clk 0:02:45.5]} 9. Be3 {[%clk 0:02:57.9]} 9... Qa5
{[%clk 0:02:34.9]} 10. Nd2 {[%clk 0:02:54.7]} 10... Nd7 {[%clk 0:02:30.6]} 11.
Nb3 {[%clk 0:02:53.7]} 11... Qb6 {[%clk 0:01:39.2]} 12. Nd5 {[%clk 0:02:49.8]}
12... Qd8 {[%clk 0:01:38.1]} 13. Nxc5 {[%clk 0:02:49.5]} 13... Nxc5 {[%clk
0:01:33.9]} 14. Bxc5 {[%clk 0:02:50.4]} 14... Bxb2 {[%clk 0:01:31.9]} 15. Rb1
{[%clk 0:02:50.5]} 15... Bd4 {[%clk 0:01:30]} 16. Bxd4 {[%clk 0:02:39.1]} 16...
Nxd4 {[%clk 0:01:30.9]} 17. Re1 {[%clk 0:02:38.6]} 17... Nc6 {[%clk 0:01:17.1]}
18. Nf6+ {[%clk 0:02:29.3]} 18... Kf8 {[%clk 0:01:15.9]} 19. Ne4 {[%clk
0:02:30.2]} 19... Kg7 {[%clk 0:01:10.9]} 20. Nc5 {[%clk 0:02:23.6]} 20... Qc7
{[%clk 0:01:08]} 21. Qd2 {[%clk 0:02:12.9]} 21... Re8 {[%clk 0:00:52.3]} 22.
Qc3+ {[%clk 0:02:12]} 22... Kg8 {[%clk 0:00:51]} 23. Nb3 {[%clk 0:02:04]} 23...
Bd7 {[%clk 0:00:30.9]} 24. Nd4 {[%clk 0:02:01.4]} 24... Rac8 {[%clk 0:00:27.2]}
25. Nb5 {[%clk 0:01:54]} 25... Qb8 {[%clk 0:00:26.9]} 26. Qa3 {[%clk 0:01:50.3]}
26... a6 {[%clk 0:00:25.5]} 27. Nc3 {[%clk 0:01:50.5]} 27... b5 {[%clk
0:00:16.5]} 28. Nd5 {[%clk 0:01:48]} 28... Be6 {[%clk 0:00:06.6]} 29. Nf4 {[%clk
0:01:43.4]} 29... Bd7 {[%clk 0:00:06.5]} 30. Qxa6 {[%clk 0:01:42.8]} 30... Nd4
{[%clk 0:00:06.6]} 31. Nd5 {[%clk 0:01:40.6]} 31... Rc5 {[%clk 0:00:05.5]} 32.
Nxe7+ {[%clk 0:01:39.2]} 32... Kf8 {[%clk 0:00:05.6]} 33. Qf6 {[%clk 0:01:38.3]}
33... Be6 {[%clk 0:00:03.7]} 34. Qxd4 {[%clk 0:01:36.2]} 34... Rxc2 {[%clk
0:00:04]} 35. Nc6 {[%clk 0:01:33.8]} 35... Qc7 {[%clk 0:00:04.5]} 36. Qh8#
{[%clk 0:01:33.6]} 1-0

[Event "Early-Titled-Tuesday-Blitz-February-06-2024"]
[Site "Chess.com"]
[Date "2024.02.06"]
[Round "10"]
[White "DonJuanEGenaro"]
[Black "Bkmzzzzz"]
[Result "0-1"]
[WhiteElo "2062"]
[BlackElo "2386"]
[TimeControl "180+1"]
[EndTime "9:54:02 PST"]
[Termination "Bkmzzzzz won on time"]

1. d4 {[%clk 0:03:00.9]} 1... d5 {[%clk 0:02:59.9]} 2. Nf3 {[%clk 0:03:00.1]}
2... e6 {[%clk 0:02:59.4]} 3. e3 {[%clk 0:02:59]} 3... Nf6 {[%clk 0:02:58.9]} 4.
c4 {[%clk 0:02:58.5]} 4... dxc4 {[%clk 0:02:59.8]} 5. Bxc4 {[%clk 0:02:56.8]}
5... c5 {[%clk 0:03:00]} 6. Nc3 {[%clk 0:02:56.5]} 6... a6 {[%clk 0:03:00.4]} 7.
a3 {[%clk 0:02:54.8]} 7... Be7 {[%clk 0:02:52.2]} 8. O-O {[%clk 0:02:53.5]} 8...
O-O {[%clk 0:02:49.9]} 9. Qe2 {[%clk 0:02:43.7]} 9... cxd4 {[%clk 0:02:49.7]}
10. exd4 {[%clk 0:02:43.4]} 10... b5 {[%clk 0:02:47.1]} 11. Ba2 {[%clk 0:02:41]}
11... Bb7 {[%clk 0:02:46.8]} 12. Bg5 {[%clk 0:01:52.5]} 12... Nbd7 {[%clk
0:02:37.5]} 13. Rfe1 {[%clk 0:01:52.1]} 13... Re8 {[%clk 0:02:37.4]} 14. Rad1
{[%clk 0:01:50]} 14... Nb6 {[%clk 0:02:33]} 15. Ne5 {[%clk 0:01:40.8]} 15...
Nfd5 {[%clk 0:02:26.3]} 16. Nxf7 {[%clk 0:01:21.5]} 16... Bxg5 {[%clk
0:02:17.7]} 17. Nxg5 {[%clk 0:00:52.6]} 17... Qxg5 {[%clk 0:02:16.5]} 18. Ne4
{[%clk 0:00:52.4]} 18... Qe7 {[%clk 0:02:03.5]} 19. Nc5 {[%clk 0:00:51.5]} 19...
Bc6 {[%clk 0:01:59.8]} 20. Qg4 {[%clk 0:00:38.5]} 20... Kh8 {[%clk 0:01:48.9]}
21. Rxe6 {[%clk 0:00:21.2]} 21... Qc7 {[%clk 0:01:48.3]} 22. Rde1 {[%clk
0:00:13.1]} 22... Nf6 {[%clk 0:01:42.9]} 23. Qh4 {[%clk 0:00:11.4]} 23... Rxe6
{[%clk 0:01:37.4]} 24. Nxe6 {[%clk 0:00:09.1]} 24... Qd7 {[%clk 0:01:26.4]} 25.
Ng5 {[%clk 0:00:08.7]} 25... Bd5 {[%clk 0:01:24.2]} 26. Bb1 {[%clk 0:00:06.1]}
26... Bg8 {[%clk 0:01:15.5]} 0-1

[Event "Early-Titled-Tuesday-Blitz-February-06-2024"]
[Site "Chess.com"]
[Date "2024.02.06"]
[Round "10"]
[White "mkllnd1517"]
[Black "APOKALIPSA13"]
[Result "1-0"]
[WhiteElo "2355"]
[BlackElo "2210"]
[TimeControl "180+1"]
[EndTime "9:54:07 PST"]
[Termination "mkllnd1517 won by resignation"]

1. Nf3 {[%clk 0:02:56.2]} 1... e5 {[%clk 0:03:00.9]} 2. Nxe5 {[%clk 0:02:56.1]}
2... Nc6 {[%clk 0:03:00.2]} 3. Nxc6 {[%clk 0:02:56]} 3... dxc6 {[%clk
0:03:01.1]} 4. d4 {[%clk 0:02:56.2]} 4... Bd6 {[%clk 0:03:00.7]} 5. e4 {[%clk
0:02:56]} 5... f5 {[%clk 0:03:00.8]} 6. e5 {[%clk 0:02:56.2]} 6... Be7 {[%clk
0:03:00.8]} 7. Bc4 {[%clk 0:02:55.5]} 7... g6 {[%clk 0:02:58.7]} 8. O-O {[%clk
0:02:53]} 8... b5 {[%clk 0:02:59.6]} 9. Bb3 {[%clk 0:02:52.7]} 9... a5 {[%clk
0:02:58.3]} 10. a4 {[%clk 0:02:53]} 10... b4 {[%clk 0:02:54.8]} 11. Be3 {[%clk
0:02:39.6]} 11... Ba6 {[%clk 0:02:53.7]} 12. Re1 {[%clk 0:02:39.4]} 12... Bg5
{[%clk 0:02:50.1]} 13. Qf3 {[%clk 0:02:34.9]} 13... Bxe3 {[%clk 0:02:47.9]} 14.
Qxc6+ {[%clk 0:02:29.6]} 14... Kf8 {[%clk 0:02:47.3]} 15. fxe3 {[%clk 0:02:30]}
15... Qe8 {[%clk 0:02:31.9]} 16. Qxc7 {[%clk 0:02:19]} 16... Ne7 {[%clk
0:02:27.1]} 17. Nd2 {[%clk 0:02:16.1]} 17... Kg7 {[%clk 0:02:24.7]} 18. Nf3
{[%clk 0:02:04.9]} 18... h6 {[%clk 0:02:19.1]} 19. d5 {[%clk 0:02:03]} 19... Rc8
{[%clk 0:02:17.4]} 20. Qxa5 {[%clk 0:02:02.7]} 20... Bb7 {[%clk 0:02:16.6]} 21.
Qxb4 {[%clk 0:01:55.5]} 21... Bxd5 {[%clk 0:02:15.8]} 22. Bxd5 {[%clk
0:01:54.7]} 22... Nxd5 {[%clk 0:02:16.7]} 23. Qd4 {[%clk 0:01:55.2]} 23... Rd8
{[%clk 0:02:14.7]} 24. c4 {[%clk 0:01:51.2]} 24... Nb4 {[%clk 0:02:12]} 25. Qc3
{[%clk 0:01:41.5]} 25... Qe7 {[%clk 0:02:04.8]} 26. e6+ {[%clk 0:01:32.5]} 26...
Kh7 {[%clk 0:02:03.5]} 27. e4 {[%clk 0:01:25.5]} 27... Rd3 {[%clk 0:02:01.9]}
28. Qe5 {[%clk 0:01:16.9]} 28... Nc2 {[%clk 0:01:55.4]} 29. exf5 {[%clk
0:01:17]} 29... Nxa1 {[%clk 0:01:51.7]} 30. fxg6+ {[%clk 0:01:17]} 30... Kg8
{[%clk 0:01:49.9]} 31. Rxa1 {[%clk 0:00:58]} 31... Qd6 {[%clk 0:01:44.1]} 32.
Qf6 {[%clk 0:00:39]} 32... Rd1+ {[%clk 0:01:39.4]} 33. Rxd1 {[%clk 0:00:28.5]}
33... Qxd1+ {[%clk 0:01:40.3]} 34. Kf2 {[%clk 0:00:28.9]} 34... Qc2+ {[%clk
0:01:34.8]} 35. Kg3 {[%clk 0:00:29]} 35... Rh7 {[%clk 0:01:29.8]} 36. gxh7+
{[%clk 0:00:27.5]} 36... Kxh7 {[%clk 0:01:29.5]} 37. Qf7+ {[%clk 0:00:22.7]}
37... Kh8 {[%clk 0:01:29.4]} 38. e7 {[%clk 0:00:23.3]} 38... Qe2 {[%clk
0:01:25.5]} 39. e8=Q+ {[%clk 0:00:21.9]} 1-0